[Event "25th Nepal Championship 2025"]
[Site "Hetauda"]
[Date "2025.01.28"]
[Round "5.3"]
[White "Tandukar, Nabin"]
[Black "Bhandari, Kshitiz"]
[Result "0-1"]
[Annotator "TA"]
[ECO "B33"]
[WhiteElo "1920"]
[BlackElo "2070"]
[PlyCount "59"]
[EventDate "2025.01.24"]
[EventType "tourn"]
[EventCountry "NEP"]
[SourceTitle "playchess.com"]
[Source "ChessBase"]
[SourceQuality "1"]
[TimeControl "5400+30"]

{[%evp 23,59,-8,0,0,75,-9,0,0,10,0,40,36,43,40,31,12,42,55,50,35,89,94,70,84,134,150,225,173,173,137,144,79,161,102,195,161,169,79]} 1. e4 {[%emt 0:00:30]} c5 {[%emt 0:00:30]} 2. Nf3 {[%emt 0:00:30][%cal Bg1f3,Bf3d4,Bd4b5][%mdl 32]} e6 {[%emt 0:00:30][%cal Be7e6,Be6e5][%mdl 32]} 3. d4 {[%emt 0:00:30]} cxd4 {[%emt 0:00:30]} 4. Nxd4 {[%emt 0:00:07]} Nf6 {[%emt 0:00:06]} 5. Nc3 {[%emt 0:00:39]} Nc6 {[%emt 1:31:24]} 6. Ndb5 {[%emt 0:00:15]} d6 {[%emt 0:00:00]} 7. Bf4 {[%emt 0:00:28]} e5 {[%emt 0:00:00]} 8. Bg5 {[%emt 0:00:23]} a6 {[%emt 0:00:00]} 9. Na3 {[%emt 0:00:24]} b5 {[%emt 0:00:00]} 10. Nd5 {[%emt 0:00:45]} Be7 {[%emt 0:00:00]} 11. Nxe7 {[%emt 0:00:56]} Nxe7 {[%emt 0:00:00]} 12. f3 {[%emt 0:04:40]} Be6 {[%emt 0:00:00]} 13. c4 {[%emt 0:00:34] B33: Sicilian: Pelikan and Sveshnikov Variations.} bxc4 {[%emt 0:00:00]} (13... O-O $11 {remains equal.}) 14. Bxc4 {[%emt 0:02:20]} (14. Nxc4 $16 d5 15. Qa4+ (15. Nxe5 O-O $11) 15... Kf8 16. Nxe5) 14... O-O $146 {[%emt 0:00:00]} (14... d5 15. exd5 Bxd5 16. Qa4+ Bc6 17. Qb3 O-O 18. Rd1 Qa5+ 19. Bd2 Qc7 20. O-O Rab8 21. Qc2 Qb6+ {0-1 Kadriji,A (1832)-Brunner,G (1965) Graz op-B 2004 (8)}) 15. O-O {[%emt 0:03:30] The position is equal.} Qb6+ {[%emt 0:00:00]} 16. Rf2 {[%emt 0:00:21]} Rfc8 {[%emt 0:00:00]} 17. Qe2 {[%emt 0:00:07]} Rc6 {[%emt 0:00:00]} 18. Bxe6 {[%emt 0:01:54]} fxe6 {[%emt 0:00:00]} 19. Nc4 {[%emt 0:00:11]} Qb5 {[%emt 0:00:00]} 20. b3 {[%emt 0:00:05] Strongly threatening Rd1.} Ng6 $1 {[%emt 0:00:00]} 21. Rd1 {[%emt 0:00:30]} Rd8 {[%emt 0:00:00]} ({Black should play} 21... d5 $14 22. exd5 exd5 23. Nxe5 Qxe2 24. Rxe2 Re6) 22. a4 $36 {[%emt 0:00:30][%mdl 2048] White has strong initiative.} Qb8 {[%emt 0:00:00][%cal Oc6c8]} (22... Qxb3 $2 {too greedy.} 23. Na5 Qxa4 24. Nxc6 Qxc6 25. Qb2 $16) 23. Na5 {[%emt 0:00:30]} Rb6 {[%emt 0:00:00]} (23... Rc7 $142) 24. Be3 {[%emt 0:00:30]} Nf4 {[%emt 0:09:30]} (24... d5 $16) 25. Qf1 {[%emt 0:03:19]} d5 {[%emt 0:00:00]} 26. Bxb6 {[%emt 0:00:27]} Qxb6 {[%emt 0:00:00]} 27. g3 {[%emt 0:01:38]} (27. Qe1 $142 $1) 27... Ng6 {[%emt 0:00:00] [#]} (27... Qxa5 $16 {might work better.} 28. gxf4 exf4 29. exd5 Nxd5) 28. b4 {[%emt 0:00:35]} (28. Qe1 $1 $18) 28... Rc8 {[%emt 0:00:00]} (28... Rf8 $16) 29. exd5 {[%emt 0:04:40]} exd5 {[%emt 0:00:00][%cal Oe5e4]} 30. Kg2 {[%emt 0:00:30][%mdl 32768] Weighted Error Value: White=0.25 (precise) /Black=0.36 Sensor Board Error (Ke4/e5)?  Mistake:       	White=4     	Black=6      Inaccurate:     	---       	Black=2      OK:         	White=3     	Black=2      Best:        	White=1     	---        Strong:       	---       	Black=1} (30. Rc1 $18 Rxc1 31. Qxc1) 0-1

[Event "25th Nepal Championship 2025"]
[Site "Hetauda"]
[Date "2025.01.28"]
[Round "5.4"]
[White "Rajbhandari, Rijendra"]
[Black "Maharjan, Suroj"]
[Result "1-0"]
[Annotator "TA"]
[ECO "C78"]
[WhiteElo "2016"]
[BlackElo "1952"]
[PlyCount "125"]
[EventDate "2025.01.24"]
[EventType "tourn"]
[EventCountry "NEP"]
[SourceTitle "playchess.com"]
[Source "ChessBase"]
[SourceQuality "1"]
[TimeControl "5400+30"]

{[%evp 14,125,114,106,100,101,112,92,91,71,245,243,237,243,309,225,247,114,112,110,114,106,121,114,157,162,167,191,343,329,449,330,275,261,314,221,199,214,180,206,216,149,200,144,122,127,132,99,99,93,125,124,123,82,143,151,176,129,132,139,147,119,145,128,112,143,159,160,207,195,183,164,283,295,567,564,497,495,670,705,788,750,1106,931,2272,2249,2156,1702,29975,29976,29979,29979,29982,29983,29983,29982,29984,29985,29984,29978,29986,29984,29984,29985,29986,29984,29993,29994,29994,29991,29994,29991,29993,29989]} 1. e4 {[%emt 0:00:04]} Nc6 {[%emt 0:00:37]} 2. Nf3 {[%emt 0:00:10]} e5 {[%emt 0:00:55]} 3. Bb5 {[%emt 0:00:12]} a6 {[%emt 0:01:39]} 4. Ba4 {[%emt 0:00:23]} Bc5 {[%emt 0:01:10]} 5. c3 {[%emt 0:01:25][%cal Bc2c3,Bc3d4][%mdl 32]} Nf6 {[%emt 0:02:22]} 6. O-O {[%emt 0:00:23]} O-O {[%emt 0:00:44]} 7. d4 {[%emt 0:03:27]} exd4 {[%emt 0:01:07]} 8. cxd4 {[%emt 0:00:02]} Ba7 {[%emt 0:02:08] C78: Ruy Lopez: Archangelsk and Möller Defences.} 9. e5 {[%emt 0:03:36]} Ne4 {[%emt 0:00:44]} 10. d5 $1 {[%emt 0:07:26]} Ne7 {[%emt 0:04:35] White is better.} 11. Bc2 {[%emt 0:01:26]} f5 {[%emt 0:00:19] [#]} (11... Nxf2 $16 12. Rxf2 Bxf2+ 13. Kxf2 d6) 12. d6 $1 $18 {[%emt 0:01:40]} cxd6 {[%emt 0:02:09]} 13. exd6 {[%emt 0:00:08]} Ng6 $146 {[%emt 0:02:38]} (13... Nc6 14. Nc3 Nxc3 15. bxc3 Qf6 16. Bb3+ Kh8 17. Ng5 Ne5 18. Nxh7 Kxh7 19. Qh5+ Qh6 20. Bxh6 gxh6 21. Rae1 Ng6 22. Re7+ {1-0 Tocanita,F-De Zolotiloff corr1 1972}) 14. Qd5+ {[%emt 0:02:22]} Kh8 {[%emt 0:00:06]} 15. Bxe4 {[%emt 0:00:24]} (15. Nc3 $1 $18 {[%cal Rc3e4] is the precise move to win.}) 15... fxe4 $16 {[%emt 0:00:12] [#]} 16. Ng5 $36 {[%emt 0:02:33][%cal Bf3g5,Bg5e4,Be4c5][%mdl 2080] White is really pushing.} Qe8 {[%emt 0:01:25] A sharp opening Wards off Nf7+} 17. Nc3 $1 {[%emt 0:00:24][%cal Oc1e3,Bb1c3,Bc3d5,Bd5e7][%mdl 32]} (17. Qxe4 $6 h6 18. Qxe8 Rxe8 $11) (17. Nxe4 $6 Rb8 $11) 17... h6 {[%emt 0:05:43] Threatens to win with ...e3.} 18. Ngxe4 {[%emt 0:01:04]} Qe5 {[%emt 0:00:20]} 19. Be3 {[%emt 0:01:39]} Qxd5 {[%emt 0:05:38]} 20. Nxd5 {[%emt 0:01:17]} Bxe3 $2 {[%emt 0:00:48]} (20... b6 21. Nxb6 Bxb6) 21. fxe3 $18 {[%emt 0:00:02]} b5 {[%emt 0:01:25]} 22. Nc5 {[%emt 0:06:26] Prevents Bb7.} Rd8 {[%emt 0:01:59]} 23. Ne7 {[%emt 0:02:34] Excellent horsemanship.} Ne5 {[%emt 0:01:10][%cal Bg6e5,Be5c4,Bc4d6][%mdl 32]} 24. Rf5 {[%emt 0:00:29]} Nc4 {[%emt 0:00:10]} 25. Raf1 {[%emt 0:13:21] and Rf8+ would now be decisive} Nxd6 {[%emt 0:02:46]} 26. Rf8+ {[%emt 0:00:06]} Rxf8 {[%emt 0:00:03]} 27. Rxf8+ {[%emt 0:00:04]} Kh7 {[%emt 0:00:22]} 28. Nxc8 {[%emt 0:00:09]} Nxc8 {[%emt 0:00:52]} 29. Nxd7 {[%emt 0:00:32] White has more active pieces.} Ra7 {[%emt 0:00:08]} 30. Rxc8 {[%emt 0:02:55]} Rxd7 $16 {[%emt 0:00:08][%mdl 4096] Endgame KR-KR. White is a pawn up.} 31. Rc2 {[%emt 0:00:08]} a5 {[%emt 0:01:31]} 32. Kf2 {[%emt 0:00:19]} b4 {[%emt 0:01:08]} 33. e4 {[%emt 0:01:17]} a4 {[%emt 0:00:12]} (33... b3 $142 34. axb3 Rd3) 34. Ke3 {[%emt 0:00:17]} Kg6 {[%emt 0:00:52]} 35. Rc4 {[%emt 0:01:04]} ({Better is} 35. Rc6+ $18 Kg5 36. Rc5+ Kf6 37. Ra5) 35... Rb7 {[%emt 0:00:13]} 36. b3 {[%emt 0:02:07]} a3 {[%emt 0:00:19]} 37. h3 {[%emt 0:00:33][%cal Bh2h3,Bh3h4,Bh4h5][%mdl 32]} Kf6 {[%emt 0:00:55]} 38. g3 {[%emt 0:00:20]} Ke5 {[%emt 0:00:16]} 39. h4 {[%emt 0:00:46]} g5 {[%emt 0:03:02]} 40. h5 {[%emt 0:02:28]} g4 {[%emt 0:02:09]} (40... Rb5 $16 41. g4 Rb8 42. Rc5+ Ke6) 41. Rc5+ $18 {[%emt 0:05:35]} Kd6 {[%emt 0:01:38]} 42. Rd5+ {[%emt 0:01:09]} Ke6 {[%emt 0:00:18]} (42... Kc6 {was worth a try.} 43. Kd4 Rf7) 43. Kf4 {[%emt 0:02:20]} Rc7 $2 {[%emt 0:00:51]} (43... Ke7 44. Kxg4 Rb8) 44. Rb5 {[%emt 0:00:36]} (44. Kxg4 Rc2 $16) 44... Rc2 {[%emt 0:00:08]} 45. Rxb4 {[%emt 0:00:22]} (45. Kxg4 Rxa2 46. Rxb4 Re2 $11) 45... Rxa2 {[%emt 0:00:07]} 46. Rb6+ {[%emt 0:00:09]} ({Not} 46. Kxg4 Rd2 $16) 46... Kf7 {[%emt 0:01:12]} 47. Rxh6 {[%emt 0:00:58]} Rb2 {[%emt 0:00:10]} 48. Ra6 {[%emt 0:00:15]} Rxb3 {[%emt 0:01:25]} 49. Kxg4 {[%emt 0:00:06]} Kg7 {[%emt 0:00:20]} 50. Kf4 {[%emt 0:00:09]} Kh7 {[%emt 0:02:55]} 51. g4 {[%emt 0:00:09][%cal Bg3g4,Bg4g5,Bg5g6][%mdl 32] White mates.} Rh3 {[%emt 0:00:11]} 52. Kg5 {[%emt 0:00:26]} Re3 {[%emt 0:00:21]} 53. Ra7+ {[%emt 0:00:06]} Kg8 {[%emt 0:00:03]} 54. Kf5 {[%emt 0:01:15]} Kf8 {[%emt 0:00:09]} 55. g5 {[%emt 0:00:43]} Rf3+ {[%emt 0:00:52]} 56. Kg4 {[%emt 0:00:06]} Re3 {[%emt 0:00:08]} 57. Kf4 {[%emt 0:00:02]} Rh3 {[%emt 0:00:02]} 58. h6 {[%emt 0:00:09]} Kg8 {[%emt 0:03:06]} 59. Kf5 {[%emt 0:00:30]} Rb3 {[%emt 0:00:23]} 60. g6 {[%emt 0:00:34]} Rb8 {[%emt 0:02:49]} 61. Rxa3 {[%emt 0:00:05]} Rf8+ {[%emt 0:00:13]} 62. Ke6 {[%emt 0:01:10]} Re8+ {[%emt 0:00:19]} 63. Kd5 {[%emt 0:39:04] Weighted Error Value: White=0.15 (very precise) /Black=0.66  Loses game:     	---       	Black=1      Mistake:       	White=2     	Black=5      Inaccurate:     	White=1     	Black=5      OK:         	White=13    	Black=13     Best:        	White=6     	Black=6      Strong:       	White=3     	---} 1-0

[Event "25th Nepal Championship 2025"]
[Site "Hetauda"]
[Date "2025.01.28"]
[Round "5.5"]
[White "Phuyal, Aashish"]
[Black "Maharjan, Prem Krishna"]
[Result "1/2-1/2"]
[Annotator "TA"]
[ECO "C90"]
[WhiteElo "1981"]
[BlackElo "1882"]
[PlyCount "48"]
[EventDate "2025.01.24"]
[EventType "tourn"]
[EventCountry "NEP"]
[SourceTitle "playchess.com"]
[Source "ChessBase"]
[SourceQuality "1"]
[TimeControl "5400+30"]

{[%evp 26,48,45,34,45,36,63,57,88,49,53,51,72,62,58,36,94,77,120,35,48,52,50,38,56]} 1. e4 {[%emt 0:00:17]} e5 {[%emt 0:00:10]} 2. Nf3 {[%emt 0:00:05]} Nc6 {[%emt 0:00:06]} 3. Bb5 {[%emt 0:00:09]} a6 {[%emt 0:00:05]} 4. Ba4 {[%emt 0:00:05]} Nf6 {[%emt 0:00:08]} 5. d3 {[%emt 0:00:24]} d6 {[%emt 0:01:48]} 6. c3 {[%emt 0:01:18]} Be7 {[%emt 0:02:14]} 7. O-O {[%emt 0:00:32]} O-O {[%emt 0:00:20]} 8. Re1 {[%emt 0:00:51]} Bg4 {[%emt 0:00:57][%cal Bc8g4,Bg4h5,Bh5g6][%mdl 32]} 9. h3 {[%emt 0:01:23]} Bh5 {[%emt 0:00:44]} 10. Nbd2 {[%emt 0:04:52][%cal Bb1d2,Bd2f1,Bf1g3,Bg3f5][%mdl 32]} b5 {[%emt 0:02:39]} 11. Bb3 {[%emt 0:00:26]} Na5 {[%emt 0:00:26]} 12. Bc2 {[%emt 0:00:22]} c5 {[%emt 0:00:30]} 13. Nf1 {[%emt 0:00:30]} Nc6 {[%emt 0:02:09]} 14. Ng3 {[%emt 0:05:16]} Bg6 {[%emt 0:08:21] C90: Closed Ruy Lopez with 7...d6: Early deviations.} 15. Nh4 {[%emt 0:07:44]} Nd7 {[%emt 0:16:36]} 16. Nhf5 {[%emt 0:01:47]} Nb6 {[%emt 0:00:36]} 17. Qg4 {[%emt 0:07:29] White is more active.} Kh8 {[%emt 0:04:59]} 18. h4 {[%emt 1:06:00] and Nxe7 would now be decisive} Bxf5 {[%emt 0:01:42]} 19. Nxf5 {[%emt 0:00:00][%csl Gf5][%cal Rg4g7] [#]} Bf6 {[%emt 0:00:42]} 20. h5 {[%emt 0:00:00]} g6 {[%emt 0:03:37]} (20... Ne7 $14) 21. Ne3 {[%emt 0:00:00]} Ne7 $146 {[%emt 0:12:49]} (21... Bg7 22. a4 b4 23. a5 Nd7 24. hxg6 fxg6 25. Nc4 Qf6 26. Rf1 Qe7 27. Ba4 Nf6 {1-0 Zandonai Ignacio,A (1971)-De Paula,L (1733) Goiania op 2017 (2)}) 22. h6 {[%emt 0:00:00]} (22. a4 $16) 22... Ng8 $14 {[%emt 0:05:37] White is slightly better.} 23. Nf1 {[%emt 0:00:00]} Qd7 {[%emt 0:07:37]} 24. Qg3 {[%emt 0:00:00]} Qe7 {[%emt 0:02:02] Weighted Error Value: White=0.22 (precise) /Black=0.18 (very precise)   Mistake:       	White=1     	Black=1      Inaccurate:     	White=1     	Black=3      OK:         	White=3     	Black=3} 1/2-1/2

[Event "25th Nepal Championship 2025"]
[Site "Hetauda"]
[Date "2025.01.28"]
[Round "5.6"]
[White "Thapa, Binay"]
[Black "Dahal, Sushrut"]
[Result "0-1"]
[Annotator "TA"]
[ECO "D02"]
[WhiteElo "1688"]
[BlackElo "2021"]
[PlyCount "72"]
[EventDate "2025.01.24"]
[EventType "tourn"]
[EventCountry "NEP"]
[SourceTitle "playchess.com"]
[Source "ChessBase"]
[SourceQuality "1"]
[TimeControl "5400+30"]

{[%evp 10,72,32,-1,8,-18,-18,-20,-21,-38,-35,-58,-27,-64,-56,-58,-57,-60,-39,-60,-39,-47,-58,-53,-24,-77,-86,-68,-71,-108,-14,-48,0,-43,-52,-89,-91,-289,-278,-313,-377,-349,-303,-328,-310,-289,-220,-241,-239,-452,-438,-555,-584,-583,-565,-721,-711,-727,-714,-1403,-1409,-1331,-1227,-1158,-1143]} 1. Nf3 {[%emt 1:31:00]} d5 {[%emt 1:31:00]} 2. d4 {[%emt 0:00:30]} Nf6 {[%emt 0:00:30]} 3. Bf4 {[%emt 0:00:30]} e6 {[%emt 0:00:30]} 4. e3 {[%emt 0:00:30]} Bd6 {[%emt 0:00:30]} 5. Bxd6 {[%emt 0:00:30]} cxd6 {[%emt 0:00:30]} 6. c3 {[%emt 0:00:30]} O-O {[%emt 0:00:30]} 7. Nbd2 {[%emt 0:00:30]} Nc6 {[%emt 0:00:30]} 8. Be2 {[%emt 0:00:30]} e5 {[%emt 0:00:30] The position is equal.} 9. dxe5 {[%emt 0:00:30]} dxe5 {[%emt 0:00:30]} 10. O-O {[%emt 0:00:30]} Be6 {[%emt 0:00:30]} 11. Nb3 {[%emt 0:00:30]} Qe7 {[%emt 0:00:30]} 12. Re1 {[%emt 0:00:30]} Rfd8 {[%emt 0:00:30]} 13. h3 {[%emt 0:00:30]} h6 {[%emt 0:00:30]} 14. Bf1 {[%emt 0:00:30]} Ne4 {[%emt 0:00:30]} 15. Qe2 {[%emt 0:00:30]} a5 {[%emt 0:00:30]} 16. Nbd2 {[%emt 0:00:30]} f5 {[%emt 0:00:30]} 17. c4 {[%emt 0:00:30] [#]} (17. Nxe4 $11 dxe4 18. Nd2) 17... Nd6 $1 $17 {[%emt 0:00:30] Black is much more active.} 18. cxd5 {[%emt 0:00:30]} Bxd5 {[%emt 0:00:30]} 19. a3 {[%emt 0:00:30]} Qc7 {[%emt 0:00:30]} (19... e4 $17 20. Nh2 a4) 20. Rac1 {[%emt 0:00:30]} Qb6 {[%emt 0:00:30]} (20... Qf7 $15) 21. Nb1 {[%emt 0:00:30]} e4 {[%emt 0:00:30]} 22. Nh4 {[%emt 0:00:30]} Ne5 {[%emt 0:00:30]} 23. f4 $2 {[%emt 0:00:30] This move loses the game for White.} (23. Qd1 $17 Bf7 24. Qd4 Qxd4 25. exd4) 23... Nd3 $19 {[%emt 0:00:30][%cal Od5f7]} 24. Red1 {[%emt 0:00:30]} Nxc1 {[%emt 0:00:30]} 25. Rxc1 {[%emt 0:00:30]} Rac8 {[%emt 0:00:30]} 26. Nc3 {[%emt 0:00:30]} Bc4 {[%emt 0:00:30]} 27. Qf2 {[%emt 0:00:30]} Bf7 {[%emt 0:00:30]} 28. g4 {[%emt 0:00:30]} fxg4 {[%emt 0:00:30]} 29. Re1 $2 {[%emt 0:00:30] [#]} (29. hxg4 {keeps fighting.} Qb3 30. a4) 29... g3 $1 {[%emt 0:00:30] Black is clearly winning.} 30. Qxg3 {[%emt 0:00:30]} (30. Qg2 Rc7) 30... Qxb2 {[%emt 0:00:30]} 31. Ne2 {[%emt 0:00:30]} Qf6 {[%emt 0:00:30]} 32. Nd4 {[%emt 0:00:30]} Rc3 {[%emt 0:00:30] ...Qxd4 is the strong threat.} 33. Rd1 {[%emt 0:00:30]} Rxa3 {[%emt 0:00:30]} 34. Ndf5 {[%emt 0:00:30]} Nxf5 {[%emt 0:00:30]} 35. Rxd8+ {[%emt 0:00:30]} Qxd8 {[%emt 0:00:30]} 36. Nxf5 {[%emt 0:00:30]} Qf6 {[%emt 0:00:30] Weighted Error Value: White=0.61/Black=0.16 (very precise) .  Loses game:     	White=1     	---        Mistake:       	White=2     	Black=2      Inaccurate:     	White=6     	Black=2      OK:         	White=9     	Black=9      Strong:       	---       	Black=1} 0-1

[Event "25th Nepal Championship 2025"]
[Site "Hetauda"]
[Date "2025.01.29"]
[Round "6.1"]
[White "Silwal, Purushottam"]
[Black "Dahal, Sushrut"]
[Result "1-0"]
[Annotator "TA"]
[ECO "B42"]
[WhiteElo "2045"]
[BlackElo "2021"]
[PlyCount "95"]
[EventDate "2025.01.24"]
[EventType "tourn"]
[EventCountry "NEP"]
[SourceTitle "playchess.com"]
[Source "ChessBase"]
[SourceQuality "1"]
[TimeControl "5400+30"]

{[%evp 14,95,50,33,53,41,42,25,38,42,47,33,46,41,64,64,89,71,127,77,101,104,85,88,109,110,104,121,113,107,114,128,180,182,303,181,257,256,254,270,273,256,274,269,287,238,239,254,269,270,314,192,182,177,180,184,236,240,240,240,227,158,227,239,448,437,450,356,485,491,485,470,527,-581,578,597,589,593,572,582,571,555,551,546]} 1. e4 {[%emt 0:00:01]} c5 {[%emt 0:00:00]} 2. Nf3 {[%emt 0:00:04][%cal Bg1f3,Bf3d4,Bd4b3][%mdl 32]} e6 {[%emt 0:00:02]} 3. d4 {[%emt 0:00:04]} cxd4 {[%emt 0:00:07]} 4. Nxd4 {[%emt 0:00:05]} a6 {[%emt 0:00:04]} 5. Bd3 {[%emt 0:00:03]} Bc5 {[%emt 0:00:19]} 6. Nb3 {[%emt 0:00:08]} Be7 {[%emt 0:00:39]} 7. Qg4 {[%emt 0:00:04]} g6 {[%emt 0:01:19]} 8. Qe2 {[%emt 0:00:04]} d6 {[%emt 0:01:15] B42: Sicilian: Kan Variation: 5 Bd3.} 9. O-O {[%emt 0:00:11]} Nc6 {[%emt 0:08:45]} 10. Nc3 {[%emt 0:04:16]} b5 {[%emt 0:07:19][%cal Bb7b5,Bb5b4][%mdl 32] White has an edge.} 11. a4 {[%emt 0:00:32]} b4 {[%emt 0:03:14]} 12. Na2 {[%emt 0:00:31]} Nf6 {[%emt 0:09:42]} 13. Bh6 {[%emt 0:01:51][%cal Oa4a5]} Qb6 {[%emt 0:12:22]} 14. Kh1 $146 {[%emt 0:06:14]} (14. a5 Qb7 15. Rad1 Bd7 16. f4 Nxa5 17. Nxa5 Qb6+ 18. Kh1 Qxa5 19. e5 Nd5 20. exd6 Bxd6 {1-0 Morozov,N (2182)-Van Deursen,P (2189) Webchess op6 Gr106 email 2014}) 14... e5 {[%emt 0:12:31]} 15. f3 {[%emt 0:03:04] Inhibits Ng4.} Nh5 {[%emt 0:15:52]} (15... Rg8 $142) 16. Be3 {[%emt 0:12:46]} (16. a5 $142 Qb7 (16... Nxa5 $2 17. Nxa5 Qxa5 18. c3 $18) 17. Bc4) 16... Qb8 $16 {[%emt 0:02:34]} 17. Bc4 {[%emt 0:01:36]} O-O {[%emt 0:05:32]} 18. Bh6 {[%emt 0:11:10]} Ng7 {[%emt 0:05:59]} 19. Bd5 {[%emt 0:00:53]} Bd7 {[%emt 0:01:00]} 20. Qc4 {[%emt 0:04:04] White is much more active.} Rc8 {[%emt 0:02:00]} 21. Bxf7+ {[%emt 0:02:47]} Kh8 {[%emt 0:03:01] ...Nd8 is the strong threat.} 22. Bd5 $36 {[%emt 0:02:42][%mdl 2048] White has strong initiative.} Nd4 {[%emt 0:01:05]} 23. Qd3 $18 {[%emt 0:00:20]} (23. Qxb4 Nxc2 24. Qd2 Nxa1 25. Rxa1 Bc6) 23... Nxb3 {[%emt 0:04:05]} (23... Nc6 $142 24. a5 Qc7) 24. cxb3 {[%emt 0:49:00]} (24. Bxb3 $6 a5 25. f4 Bf6 $16) (24. Qxb3 $142 Ra7 25. a5 (25. Nxb4 a5 $18) (25. Qxb4 g5 $18)) 24... Ra7 {[%emt 0:00:59]} (24... Bc6 25. Rfc1 Bxd5) 25. Be3 {[%emt 0:00:00]} a5 {[%emt 0:00:21]} 26. Bxa7 {[%emt 0:00:00]} Qxa7 {[%emt 0:00:01]} 27. Nc1 {[%emt 0:00:00]} Nh5 {[%emt 0:00:32]} 28. Ne2 {[%emt 0:00:00]} Rf8 {[%emt 0:00:22]} 29. Qd2 {[%emt 0:00:00]} Kg7 {[%emt 0:01:03]} 30. Rac1 {[%emt 0:00:00]} h6 {[%emt 0:00:24]} 31. Qc2 {[%emt 0:00:00]} Bd8 {[%emt 0:00:11]} 32. Rcd1 {[%emt 0:00:00]} Bb6 {[%emt 0:00:31]} 33. Bc4 {[%emt 0:00:00]} Bc5 {[%emt 0:00:34]} 34. Qd2 {[%emt 0:00:00]} g5 {[%emt 0:00:27]} (34... Bc8 $142 35. Rde1 Qe7) 35. g4 {[%emt 0:00:00]} Nf4 {[%emt 0:01:17]} 36. Nxf4 {[%emt 0:00:00]} Rxf4 {[%emt 0:00:14]} 37. Kg2 {[%emt 0:00:00]} Bd4 {[%emt 0:00:33] [#]} (37... Qa8 $16) 38. h4 $1 {[%emt 0:00:00]} Bc8 $2 {[%emt 0:01:00]} (38... Bxg4 {is a better defense.} 39. fxg4 Rxg4+ 40. Kf3 Qd7) 39. hxg5 {[%emt 0:00:00]} hxg5 {[%emt 0:00:01]} 40. Qe1 {[%emt 0:00:00]} Qe7 {[%emt 0:00:33]} 41. Qg3 {[%emt 0:00:00]} Qf6 {[%emt 0:00:21]} 42. Qh3 {[%emt 0:00:00][%cal Od1d4] Prevents Qg6.} Kf8 {[%emt 0:01:22]} 43. Rh1 $4 {[%emt 0:00:00][%mdl 8192] [#]} (43. Qh7 $18 {Strongly threatening Qg8+.} Bxg4 44. Rxd4 (44. fxg4 Rf2+ 45. Rxf2 Qxf2+ 46. Kh3 Qe3+ 47. Kh2 Qf2+ 48. Kh1 Qf3+ 49. Kh2 Qf4+ 50. Kh1 Qf3+ 51. Kh2 Qf2+ 52. Kh1 Qf3+ $11) 44... Bxf3+ 45. Rxf3 Rxf3 46. Rxd6 Rf2+ 47. Kg1 Qxd6 48. Kxf2 Qd2+ 49. Be2) 43... Bxg4 $4 {[%emt 0:00:39][%mdl 8192]} 44. Qh8+ {[%emt 0:00:00] White is clearly winning.} (44. fxg4 $2 {gets mated.} Rf2+ (44... Rxe4 $2 {too greedy.} 45. Rdf1 $18) 45. Kg1 Rxb2+ 46. Rxd4 Qf2#) 44... Qxh8 {[%emt 0:00:45]} 45. Rxh8+ {[%emt 0:00:00]} Ke7 {[%emt 0:00:24]} 46. fxg4 {[%emt 0:00:00]} Rxg4+ {[%emt 0:00:15]} 47. Kh3 {[%emt 0:00:00]} Rxe4 {[%emt 0:00:22]} 48. Rf1 {[%emt 0:12:00] Weighted Error Value: White=0.32/Black=0.46  Missed win:     	White=1     	Black=1      Mistake:       	White=2     	Black=7      Inaccurate:     	White=2     	Black=1      OK:         	White=21    	Black=14     Best:        	White=3     	Black=3} 1-0